bitfinex-derivatives/quotes_SOLF0:USTF0_20250514
["timestamp","ask_amount","ask_price","bid_price","bid_amount"]
[1747231703574,140.98,178.41,178.28,74.2623]
[1747231703778,70.4,178.41,178.36,5.6055]
[1747231704176,432.54,178.45,178.37,5.6052]
[1747231704473,70.38,178.44,178.33,70.54]
[1747231704673,5.6036,178.43,178.38,5.6049]
[1747231705074,70.38,178.44,178.38,5.6049]
[1747231705278,5.6041,178.42,178.37,5.6054]
[1747231706477,5.6041,178.42,178.38,5.6051]
[1747231707074,70.38,178.44,178.33,70.54]
[1747231707576,432.54,178.45,178.33,70.54]
[1747231707776,5.6035,178.44,178.4,5.6043]
[1747231707970,362.0,178.45,178.38,70.52]
[1747231708371,362.0,178.45,178.41,5.6039]
[1747231708675,70.34,178.47,178.38,70.52]
[1747231708879,76.1218,178.49,178.39,3.8159]
[1747231709183,70.32,178.48,178.39,3.8159]
[1747231709478,70.32,178.48,178.46,5.6026]
[1747231709680,70.52,178.53,178.43,70.52]
[1747231709879,76.1207,178.53,178.43,70.52]
[1747231710084,70.52,178.53,178.43,70.52]
[1747231710380,70.3,178.54,178.51,5.601]
[1747231710584,70.3,178.54,178.43,70.52]
[1747231710983,75.9002,178.54,178.43,70.52]
[1747231711187,70.3,178.54,178.43,70.52]
[1747231711486,5.601,178.51,178.43,70.52]
[1747231711776,70.3,178.54,178.43,70.52]
[1747231711978,5.6008,178.52,178.43,70.52]
[1747231712182,70.3,178.54,178.43,70.52]
[1747231712586,5.6007,178.53,178.43,70.52]
[1747231712783,70.3,178.54,178.43,70.52]
[1747231713183,5.6004,178.53,178.48,5.602]
[1747231713382,70.3,178.54,178.43,70.52]
[1747231713586,140.76,178.57,178.43,70.52]
[1747231713887,432.24,178.59,178.44,11.05357887]
[1747231714092,362.0,178.59,178.44,11.05357887]
[1747231714291,362.0,178.59,178.45,1.8795]
[1747231714587,362.0,178.59,178.46,70.24]
[1747231714977,70.48,178.68,178.48,11.05357887]
[1747231715180,5.5975,178.63,178.49,74.2953]
[1747231715581,70.22,178.67,178.49,74.2953]
[1747231716188,5.5969,178.65,178.59,5.5982]
[1747231716492,70.22,178.67,178.58,70.48]
[1747231716989,5.5971,178.64,178.59,5.5983]
[1747231717290,70.22,178.67,178.58,70.48]
[1747231718487,70.22,178.67,178.51,484.3]
[1747231718689,362.0,178.66,178.52,70.46]
[1747231718890,11.05357887,178.65,178.52,70.46]
[1747231719290,5.5986,178.59,178.55,5.5997]
[1747231719587,70.14,178.63,178.52,70.46]
[1747231719985,362.0,178.62,178.38,0.97454423]
[1747231720198,11.05357887,178.55,178.36,11.2113]
[1747231720388,140.26,178.54,178.36,11.2113]
[1747231720691,5.6017,178.49,178.37,70.12]
[1747231720881,140.26,178.54,178.38,81.17357887]
[1747231721084,70.14,178.54,178.38,81.17357887]
[1747231721487,70.14,178.54,178.42,11.05357887]
[1747231721692,70.14,178.54,178.43,145.7946]
[1747231722195,70.14,178.54,178.49,5.6014]
[1747231722688,70.14,178.54,178.5,5.6012]
[1747231723102,70.14,178.54,178.48,70.12]
[1747231723393,70.14,178.54,178.52,5.6007]
[1747231723695,484.08,178.62,178.48,140.2]
[1747231723890,70.08,178.63,178.48,140.2]
[1747231724091,70.08,178.63,178.48,624.26]
[1747231724289,70.08,178.63,178.55,5.5995]
[1747231724692,5.5981,178.61,178.54,70.12]
[1747231725094,70.08,178.63,178.56,5.5993]
[1747231725394,70.08,178.63,178.52,70.12]
[1747231725694,5.5994,178.57,178.52,70.12]
[1747231725997,362.0,178.62,178.52,70.12]
[1747231726195,5.5992,178.58,178.52,70.12]
[1747231726693,5.5984,178.6,178.55,5.5995]
[1747231726996,432.04,178.62,178.52,70.12]
[1747231727400,5.5982,178.6,178.56,5.5993]
[1747231727699,432.04,178.62,178.52,70.12]
[1747231728491,432.04,178.62,178.57,5.5991]
[1747231729197,5.5981,178.61,178.57,5.5991]
[1747231729599,362.0,178.62,178.59,5.5985]
[1747231729786,70.12,178.65,178.53,1.8556]
[1747231729985,70.12,178.65,178.53,3.6127]
[1747231730191,5.5971,178.64,178.59,5.5984]
[1747231730799,140.12,178.65,178.57,5.599]
[1747231731196,140.12,178.65,178.54,70.0]
[1747231731796,5.5978,178.62,178.57,5.5991]
[1747231731999,5.5978,178.62,178.54,70.0]
[1747231732194,140.12,178.65,178.54,70.0]
[1747231732491,5.5987,178.59,178.55,5.5995]
[1747231732696,151.17357887,178.65,178.54,70.0]
[1747231732897,5.598,178.61,178.54,70.0]
[1747231733102,151.17357887,178.65,178.54,70.0]
[1747231733291,5.5975,178.63,178.54,70.0]
[1747231733896,5.5968,178.65,178.54,70.0]
[1747231734397,431.94,178.67,178.54,70.0]
[1747231734599,5.5971,178.64,178.59,5.5983]
[1747231734794,431.94,178.67,178.57,70.1]
[1747231735301,5.5979,178.61,178.57,70.1]
[1747231736403,5.5979,178.61,178.57,75.6991]
[1747231736905,362.0,178.66,178.57,70.1]
[1747231737597,362.0,178.66,178.59,5.5985]
[1747231737802,5.5972,178.64,178.59,5.5985]
[1747231738003,362.0,178.66,178.61,5.5977]
[1747231738205,5.5967,178.65,178.61,5.5977]
[1747231738403,362.0,178.66,178.61,5.5977]
[1747231738903,5.5967,178.65,178.61,5.5977]
[1747231739100,362.0,178.66,178.61,5.5977]
[1747231739301,362.0,178.66,178.57,70.1]
[1747231740209,362.0,178.66,178.6,5.5979]
[1747231740806,362.0,178.66,178.57,70.1]
[1747231741204,5.5967,178.65,178.57,70.1]
[1747231741709,367.5964,178.66,178.57,70.1]
[1747231741911,362.0,178.66,178.57,70.1]
[1747231742311,362.0,178.66,178.61,5.5977]
[1747231742607,70.1,178.69,178.57,70.1]
[1747231742807,5.5958,178.68,178.57,70.1]
[1747231743001,70.1,178.69,178.57,70.1]
[1747231743406,70.1,178.69,178.62,5.5973]
[1747231743814,70.1,178.69,178.59,69.82]
[1747231744215,70.1,178.69,178.57,70.1]
[1747231744508,70.1,178.69,178.58,69.8]
[1747231744713,69.82,178.7,178.58,69.8]
[1747231745210,69.82,178.7,178.62,5.5974]
[1747231745410,362.0,178.71,178.62,70.08]
[1747231745609,362.0,178.71,178.65,5.5966]
[1747231745908,431.78,178.71,178.62,70.08]
[1747231746209,5.5959,178.68,178.64,5.5968]
[1747231746606,5.5955,178.69,178.65,5.5966]
[1747231747007,362.0,178.71,178.63,3.6973]
[1747231747207,5.5951,178.7,178.65,5.5964]
[1747231747409,5.5951,178.7,178.63,3.6973]
[1747231747608,362.0,178.71,178.63,3.6973]
[1747231747812,5.5951,178.7,178.66,5.5963]
[1747231748011,362.0,178.71,178.63,3.6973]
[1747231748215,362.0,178.71,178.63,75.2394]
[1747231748413,5.5934,178.76,178.63,75.2394]
[1747231748909,362.0,178.77,178.63,5.4794]
[1747231749114,70.08,178.76,178.64,70.08]
[1747231749412,5.5946,178.72,178.66,5.5962]
[1747231749610,70.08,178.76,178.64,70.08]
[1747231750108,5.5947,178.72,178.67,5.5959]
[1747231750309,70.08,178.76,178.64,70.08]
[1747231750511,5.5943,178.73,178.68,5.5956]
[1747231750707,70.08,178.76,178.68,5.5956]
[1747231750910,70.08,178.76,178.64,70.08]
[1747231751509,70.08,178.76,178.67,5.596]
[1747231751713,70.08,178.76,178.64,70.08]
[1747231752013,5.5946,178.72,178.68,5.5954]
[1747231753111,70.08,178.76,178.64,70.08]
[1747231753510,5.5946,178.72,178.68,5.5956]
[1747231753707,5.5946,178.72,178.64,70.08]
[1747231754116,362.0,178.77,178.64,70.08]
[1747231754715,362.0,178.77,178.7,5.595]
[1747231754917,362.0,178.77,178.7,69.72]
[1747231756222,362.0,178.77,178.71,5.5948]
[1747231756421,362.0,178.77,178.7,69.72]
[1747231757522,362.0,178.77,178.63,12.35851401]
[1747231757713,6.87911401,178.76,178.67,5.5958]
[1747231757916,6.87911401,178.76,178.64,139.32]
[1747231758116,5.595,178.71,178.64,139.32]
[1747231758321,69.62,178.74,178.64,139.32]
[1747231758616,5.595,178.71,178.64,139.32]
[1747231758825,362.0,178.77,178.64,139.32]
[1747231759212,362.0,178.77,178.73,5.5941]
[1747231759823,367.5929,178.77,178.73,5.5939]
[1747231760326,5.5933,178.76,178.73,5.5939]
[1747231760713,5.5933,178.76,178.72,5.5943]
[1747231760921,5.5933,178.76,178.69,69.7]
[1747231761719,362.0,178.77,178.74,5.5938]
[1747231761918,139.28,178.81,178.69,139.28]
[1747231763023,5.5924,178.79,178.76,5.5931]
[1747231763221,69.7,178.84,178.74,69.7]
[1747231763424,69.56,178.83,178.74,69.7]
[1747231763925,5.5918,178.81,178.78,5.5925]
[1747231764222,69.7,178.84,178.74,69.7]
[1747231764421,69.7,178.84,178.75,3.6956]
[1747231764815,139.24,178.84,178.75,3.6956]
[1747231765021,5.5914,178.82,178.75,3.6956]
[1747231765320,139.24,178.84,178.75,3.6956]
[1747231765520,139.24,178.84,178.69,76.45911401]
[1747231765521,6.87911401,178.82,178.71,69.68]
[1747231765727,5.5924,178.79,178.74,5.5937]
[1747231765917,6.87911401,178.82,178.74,5.5937]
[1747231766319,6.87911401,178.82,178.74,5.5936]
[1747231766521,6.87911401,178.82,178.71,69.68]
[1747231767026,6.87911401,178.82,178.75,5.5934]
[1747231767226,6.87911401,178.82,178.71,69.68]
[1747231767429,6.87911401,178.82,178.74,5.5936]
[1747231767828,6.87911401,178.82,178.71,69.68]
[1747231768028,5.5927,178.78,178.75,5.5933]
[1747231768234,6.87911401,178.82,178.71,69.68]
[1747231768426,362.0,178.83,178.72,1.8965]
[1747231768626,431.5,178.83,178.72,1.8965]
[1747231768828,362.0,178.83,178.72,1.8965]
[1747231769030,5.5916,178.82,178.78,5.5923]
[1747231769226,362.0,178.83,178.76,69.68]
[1747231769620,69.48,178.86,178.76,69.68]
[1747231769825,501.16,178.88,178.76,69.68]
[1747231770124,5.5901,178.86,178.83,5.5909]
[1747231770428,362.0,178.88,178.81,69.68]
[1747231771028,362.0,178.88,178.82,1.7622]
[1747231771225,5.5892,178.89,178.82,1.7622]
[1747231771527,76.33911401,178.93,178.85,5.5902]
[1747231771929,6.87911401,178.93,178.82,1.7622]
[1747231772232,76.31911401,178.93,178.84,5.5906]
[1747231772530,76.31911401,178.93,178.82,1.7622]
[1747231772727,6.87911401,178.93,178.85,5.5901]
[1747231772928,139.12,178.95,178.86,69.68]
[1747231773334,5.5884,178.92,178.86,75.2698]
[1747231773830,5.5884,178.92,178.86,69.68]
[1747231774127,5.5884,178.92,178.87,5.5895]
[1747231774332,5.588,178.93,178.86,69.68]
[1747231774533,139.12,178.95,178.86,69.68]
[1747231774834,69.68,178.95,178.86,69.68]
[1747231775037,5.5876,178.94,178.89,5.5891]
[1747231775229,6.87911401,178.96,178.89,5.5891]
[1747231775429,6.87911401,178.96,178.87,1.8037]
[1747231776337,6.87911401,178.96,178.88,5.5892]
[1747231776634,76.25911401,178.96,178.87,1.8037]
[1747231777528,6.87911401,178.96,178.87,1.8037]
[1747231777733,5.5881,178.93,178.89,5.5891]
[1747231778233,6.87911401,178.96,178.85,1.8045]
[1747231778833,6.87911401,178.96,178.86,5.59]
[1747231779340,5.5891,178.9,178.86,5.59]
[1747231779531,6.87911401,178.96,178.85,1.8045]
[1747231779738,69.34,178.95,178.86,1.8028]
[1747231779936,5.5883,178.92,178.89,5.5889]
[1747231780637,5.5885,178.91,178.86,1.8028]
[1747231781043,5.5889,178.9,178.87,5.5895]
[1747231781338,69.34,178.95,178.86,1.8028]
[1747231781533,5.5897,178.88,178.86,1.8028]
[1747231781739,6.87911401,178.93,178.85,1.8045]
[1747231783244,5.59,178.87,178.84,5.5904]
[1747231783438,6.87911401,178.93,178.82,71.0822]
[1747231783638,6.87911401,178.9,178.77,1.8068]
[1747231783944,6.87911401,178.87,178.77,1.8068]
[1747231784144,362.0,178.86,178.77,1.8068]
[1747231785038,362.0,178.86,178.76,69.32]
[1747231785342,6.87911401,178.84,178.74,69.32]
[1747231785544,69.26,178.83,178.74,69.32]
[1747231786244,5.5928,178.78,178.75,5.5934]
[1747231786544,69.26,178.83,178.74,69.32]
[1747231786739,5.593,178.77,178.74,74.9138]
[1747231787438,69.26,178.83,178.75,5.5933]
[1747231787844,69.26,178.83,178.74,69.32]
[1747231789145,69.26,178.83,178.74,74.9135]
[1747231789346,69.26,178.83,178.74,69.32]
[1747231790045,6.87911401,178.81,178.74,69.32]
[1747231790646,6.87911401,178.81,178.74,74.9138]
[1747231790846,6.87911401,178.81,178.74,69.32]
[1747231791149,5.5929,178.77,178.74,74.9138]
[1747231791546,5.5929,178.77,178.74,69.32]
[1747231792449,6.87911401,178.81,178.74,74.9135]
[1747231792951,5.5929,178.77,178.74,74.9135]
[1747231793250,6.87911401,178.81,178.75,5.5935]
[1747231793443,6.87911401,178.81,178.74,69.32]
[1747231793842,6.87911401,178.81,178.74,74.9137]
[1747231794044,5.5928,178.78,178.74,69.32]
[1747231794246,5.5928,178.78,178.74,74.9137]
[1747231794554,6.87911401,178.81,178.74,69.32]
[1747231794751,5.5934,178.76,178.74,69.32]
[1747231794949,5.5934,178.76,178.71,3.6241]
[1747231795145,69.16,178.78,178.7,69.34]
[1747231795350,6.87911401,178.72,178.64,72.9934]
[1747231795551,69.16,178.71,178.6,69.34]
[1747231796351,5.5967,178.65,178.62,5.5973]
[1747231796547,431.16,178.71,178.6,69.34]
[1747231797354,5.5961,178.67,178.63,5.597]
[1747231797553,431.16,178.71,178.63,5.597]
[1747231797749,6.87911401,178.69,178.6,69.34]
[1747231797951,5.5972,178.64,178.6,5.5981]
[1747231798153,6.87911401,178.69,178.59,3.6534]
[1747231798552,5.597,178.64,178.61,5.5979]
[1747231798856,5.597,178.64,178.59,3.6534]
[1747231799046,5.597,178.64,178.6,5.5981]
[1747231799446,5.597,178.64,178.59,3.6534]
[1747231799745,6.87911401,178.69,178.59,3.6534]
[1747231800152,6.87911401,178.66,178.56,69.36]
[1747231800361,69.12,178.65,178.56,69.36]
[1747231800858,5.598,178.61,178.58,5.5987]
[1747231801058,6.87911401,178.63,178.56,69.36]
[1747231801457,5.5982,178.61,178.57,5.5989]
[1747231801659,6.87911401,178.63,178.57,5.5989]
[1747231801856,6.87911401,178.6,178.47,37.93581453]
[1747231802067,6.87911401,178.55,178.47,43.53791453]
[1747231802357,6.87911401,178.52,178.45,73.0025]
[1747231802659,6.87911401,178.52,178.45,3.6225]
[1747231803258,6.87911401,178.52,178.45,9.2253]
[1747231803555,149.53980856,178.54,178.41,69.38]
[1747231803758,362.0,178.53,178.42,3.7467]
[1747231804159,362.0,178.52,178.42,3.7467]
[1747231804356,11.03980856,178.5,178.39,69.38]
[1747231804556,138.5,178.49,178.37,69.4]
[1747231804757,5.6033,178.44,178.37,69.4]
[1747231805060,362.0,178.48,178.37,69.4]
[1747231805460,362.0,178.47,178.37,69.4]
[1747231805653,11.03980856,178.5,178.37,69.4]
[1747231805654,431.1,178.46,178.37,69.4]
[1747231806259,431.1,178.46,178.42,5.6036]
[1747231806463,431.1,178.46,178.37,69.4]
[1747231806860,442.13980856,178.46,178.35,5.5963]
[1747231807058,11.03980856,178.42,178.3,74.9528]
[1747231807264,500.52,178.41,178.3,74.9528]
[1747231807462,5.606,178.36,178.3,74.9528]
[1747231807662,500.52,178.41,178.3,74.9528]
[1747231807859,5.608,178.29,178.23,5.6095]
[1747231808062,69.1,178.3,178.19,1.861]
[1747231808361,69.1,178.3,178.2,5.6108]
[1747231808565,11.03980856,178.29,178.19,1.861]
[1747231808954,5.6099,178.23,178.19,1.861]
[1747231809162,11.03980856,178.29,178.19,1.861]
[1747231809460,5.6098,178.24,178.19,1.861]
[1747231809668,11.03980856,178.29,178.19,1.861]
[1747231810068,11.03980856,178.29,178.18,5.6114]
[1747231810270,11.03980856,178.29,178.16,3.6718]
[1747231810568,362.0,178.28,178.16,1.9004]
[1747231810765,362.0,178.27,178.16,1.9004]
[1747231810957,11.03980856,178.25,178.16,1.9004]
[1747231811158,431.12,178.24,178.12,1.895]
[1747231811569,11.03980856,178.21,178.12,1.895]
[1747231811758,69.12,178.2,178.12,1.895]
[1747231812171,5.6117,178.18,178.12,7.508]
[1747231812666,5.6117,178.18,178.13,5.6129]
[1747231812869,362.0,178.24,178.12,1.895]
[1747231813271,69.1,178.23,178.12,1.895]
[1747231814677,11.03980856,178.2,178.09,1.8325]
[1747231814875,80.19980856,178.2,178.13,5.6129]
[1747231815167,80.19980856,178.2,178.09,1.8325]
[1747231815365,362.0,178.19,178.08,5.6143]
[1747231815570,11.03980856,178.16,178.05,1.822]
[1747231815767,69.16,178.15,178.05,1.822]
[1747231815966,69.16,178.15,178.06,5.6149]
[1747231816371,69.16,178.15,178.02,3.6618]
[1747231817183,362.0,178.14,178.02,3.6618]
[1747231818184,367.6127,178.14,178.03,69.18]
[1747231818379,362.0,178.14,178.03,69.18]
[1747231819180,362.0,178.14,178.06,5.6151]
[1747231819385,362.0,178.14,178.03,69.18]
[1747231821183,5.6136,178.12,178.06,5.6152]
[1747231821380,69.2,178.13,178.03,69.18]
[1747231822285,69.2,178.13,178.08,5.6144]
[1747231822586,69.2,178.13,178.03,69.18]
[1747231822789,5.6147,178.08,178.03,74.796]
[1747231822986,5.6147,178.08,178.03,69.18]
[1747231823289,69.12,178.1,178.05,5.6152]
[1747231823484,69.12,178.1,178.03,69.18]
[1747231823790,5.6145,178.09,178.04,5.6158]
[1747231824091,69.12,178.1,178.04,5.6158]
[1747231824284,69.12,178.1,178.03,69.18]
[1747231824688,362.0,178.09,177.97,365.37312197]
[1747231824888,69.22,178.08,177.99,5.6171]
[1747231825090,11.03980856,178.07,177.96,3.7394]
[1747231825890,138.34,178.06,177.96,3.7394]
[1747231826492,5.616,178.04,177.99,5.6171]
[1747231826684,138.34,178.06,177.96,3.7394]
[1747231828092,138.34,178.06,178.0,5.617]
[1747231828291,138.34,178.06,177.96,3.7394]
[1747231828790,5.6159,178.04,177.96,3.7394]
[1747231828989,138.34,178.06,177.96,3.7394]
[1747231829292,5.6161,178.04,177.99,5.6172]
[1747231829892,5.6161,178.04,178.0,5.617]
[1747231830092,5.6161,178.04,177.96,3.7394]
[1747231830392,5.6162,178.03,177.96,3.7394]
[1747231830894,138.34,178.06,177.96,3.7394]
[1747231831993,69.08,178.06,177.96,3.7394]
[1747231832190,74.6954,178.06,177.97,1.7649]
[1747231832695,74.6954,178.06,178.01,5.6165]
[1747231832890,74.6954,178.06,177.97,1.7649]
[1747231833093,69.06,178.09,177.98,69.06]
[1747231833693,5.6154,178.06,177.98,69.06]
[1747231833894,69.06,178.09,177.98,69.06]
[1747231834396,69.06,178.09,178.06,5.6149]
[1747231834702,69.28,178.11,178.0,69.28]
[1747231834893,69.06,178.13,178.0,69.28]
[1747231835394,5.6135,178.12,178.07,5.6146]
[1747231835596,69.06,178.13,178.07,5.6146]
[1747231835996,69.06,178.13,178.03,69.04]
[1747231836394,203.40523128,178.17,178.03,69.04]
[1747231836595,272.44523128,178.17,178.03,69.04]
[1747231836998,5.6137,178.11,178.03,69.04]
[1747231837198,272.44523128,178.17,178.03,69.04]
[1747231837495,5.6133,178.12,178.03,69.04]
[1747231837704,5.6133,178.12,178.08,5.6145]
[1747231838097,5.6133,178.12,178.05,69.28]
[1747231838303,5.6131,178.13,178.05,69.28]
[1747231838502,272.44523128,178.17,178.05,69.28]
[1747231838703,5.6127,178.14,178.06,5.6003]
[1747231839304,5.613,178.13,178.09,5.6142]
[1747231839604,272.44523128,178.17,178.06,5.6003]
[1747231839804,5.614,178.1,178.06,11.2154]
[1747231839995,69.0,178.14,178.06,3.7577]
[1747231840398,5.6139,178.11,178.07,5.6148]
[1747231840906,69.0,178.14,178.06,3.7577]
[1747231841103,69.0,178.14,178.06,1.8679]
[1747231841504,5.6133,178.12,178.08,5.6143]
[1747231841803,69.0,178.14,178.06,1.8679]
[1747231842003,69.0,178.14,178.09,5.614]
[1747231842209,69.0,178.14,178.06,1.8679]
[1747231842606,5.6135,178.12,178.08,5.6145]
[1747231842799,69.0,178.14,178.06,1.8679]
[1747231843000,362.0,178.16,178.06,1.8679]
[1747231843200,367.6122,178.16,178.12,5.6131]
[1747231843705,362.0,178.16,178.07,70.8857]
[1747231844101,203.40523128,178.17,178.02,5.6163]
[1747231844102,11.03980856,178.11,178.02,5.6163]
[1747231844404,68.96,178.1,178.01,1.9257]
[1747231844908,11.03980856,178.07,177.97,70.8293]
[1747231845105,68.98,178.06,177.97,70.8293]
[1747231845405,68.96,178.05,177.93,1.9257]
[1747231845603,68.96,178.05,177.92,70.8293]
[1747231845802,11.03980856,178.03,177.92,70.8293]
[1747231847105,5.6169,178.01,177.95,5.6186]
[1747231847301,68.94,178.0,177.95,5.6186]
[1747231847499,68.94,178.0,177.92,70.8293]
[1747231847704,74.5573,178.0,177.94,5.6187]
[1747231848006,68.94,178.0,177.92,70.8293]
[1747231848406,68.94,178.0,177.99,5.6174]
[1747231848611,68.94,178.05,177.94,68.94]
[1747231849005,68.92,178.06,177.94,68.94]
[1747231849403,68.92,178.1,177.94,68.94]
[1747231849600,74.5339,178.1,177.94,68.94]
[1747231849805,68.92,178.1,177.94,68.94]
[1747231850308,68.92,178.1,177.96,11.03980856]
[1747231850507,68.92,178.1,177.97,69.02]
[1747231850711,69.02,178.12,177.97,69.02]
[1747231850912,68.92,178.14,177.97,69.02]
[1747231851410,68.92,178.14,177.98,11.2352]
[1747231851712,68.92,178.14,177.99,72.7799]
[1747231852311,11.03980856,178.13,178.0,68.9]
[1747231852612,11.03980856,178.13,178.01,5.6165]
[1747231852913,5.6148,178.08,178.01,5.6165]
[1747231853111,68.9,178.09,178.0,74.5171]
[1747231853412,5.6155,178.06,178.0,74.5171]
[1747231853612,68.9,178.09,178.0,74.5171]
[1747231853812,68.9,178.09,178.01,5.6167]
[1747231854613,5.6154,178.06,178.01,5.6167]
[1747231854814,68.88,178.11,178.0,68.9]
[1747231855017,68.88,178.11,178.01,1.8592]
[1747231855715,5.615,178.07,178.01,1.8592]
[1747231856216,5.6148,178.08,178.01,1.8592]
[1747231856416,68.88,178.11,178.01,1.8592]
[1747231856615,69.0,178.13,178.01,1.8592]
[1747231856815,68.86,178.12,178.03,5.616]
[1747231857218,68.86,178.12,178.01,1.8592]
[1747231857413,68.86,178.12,178.01,7.4759]
[1747231857821,11.03980856,178.11,177.99,1.9327]
[1747231858116,11.03980856,178.11,177.99,7.5501]
[1747231858311,5.6158,178.05,177.99,1.9327]
[1747231858510,68.86,178.06,177.99,1.9327]
[1747231858811,5.6159,178.04,177.99,1.9327]
[1747231859115,68.86,178.06,177.99,1.9327]
[1747231859617,5.6157,178.05,177.99,1.9327]
[1747231859916,68.86,178.06,177.99,1.9327]
[1747231860916,68.86,178.06,177.97,69.02]
[1747231862012,68.86,178.06,177.98,68.82]
[1747231862318,74.4753,178.06,177.98,68.82]
[1747231862519,68.86,178.06,177.98,68.82]
[1747231863006,68.86,178.06,177.99,1.8712]
[1747231863618,68.8,178.1,177.99,1.8712]
[1747231864019,74.4141,178.1,178.06,5.6151]
[1747231864219,74.4141,178.1,177.99,1.8712]
[1747231864220,68.8,178.1,178.03,69.0]
[1747231864723,5.6151,178.07,178.03,74.6161]
[1747231864914,5.6151,178.07,178.03,5.6161]
[1747231865118,68.8,178.1,177.99,70.8712]
[1747231865822,5.6147,178.08,177.99,70.8712]
[1747231866225,68.8,178.1,177.99,70.8712]
[1747231866721,68.8,178.1,177.94,3.8342]
[1747231866924,5.6168,178.01,177.97,5.6179]
[1747231867317,68.78,178.03,177.95,69.0]
[1747231867925,5.6167,178.02,177.97,5.6178]
[1747231868123,68.78,178.03,177.95,69.0]
[1747231868523,68.78,178.03,177.9,68.76]
[1747231868524,68.78,178.03,177.91,69.0]
[1747231868918,362.0,178.02,177.91,69.0]
[1747231870025,5.618,177.98,177.93,5.6193]
[1747231870220,74.378,177.98,177.91,69.0]
[1747231870625,5.6188,177.95,177.87,485.32]
[1747231870823,362.0,177.97,177.87,485.32]
[1747231871226,362.0,177.97,177.94,5.6189]
[1747231871421,362.0,177.97,177.87,485.32]
[1747231872227,362.0,177.97,177.93,5.6191]
[1747231872617,362.0,177.97,177.87,485.32]
[1747231873521,362.0,177.97,177.96,5.6183]
[1747231873721,68.74,178.02,177.93,68.76]
[1747231873923,68.74,178.02,178.0,5.6169]
[1747231874131,68.74,178.02,177.94,3.8002]
[1747231874427,5.6168,178.01,177.96,5.6181]
[1747231874628,68.74,178.02,177.94,3.8002]
[1747231876633,5.6169,178.01,177.97,5.618]
[1747231877235,68.74,178.02,177.94,3.8002]
[1747231878135,68.74,178.02,177.93,68.76]
[1747231879538,5.618,177.98,177.93,74.379]
[1747231879733,68.74,178.02,177.93,74.379]
[1747231880235,5.6183,177.97,177.93,74.379]
[1747231880438,68.72,177.96,177.89,3.6231]
[1747231880731,362.0,177.95,177.85,68.76]
[1747231881129,362.0,177.94,177.85,68.76]
[1747231881432,362.0,177.94,177.84,5.6219]
[1747231881634,362.0,177.94,177.81,74.2717]
[1747231881833,362.0,177.93,177.81,74.2717]
[1747231882035,68.76,177.92,177.81,74.2717]